bitfinex-derivatives/quotes_ETHF0:USTF0_20250708
["timestamp","ask_amount","ask_price","bid_price","bid_amount"]
[1752001643706,1.42058,2618.5,2618.4,0.76371]
[1752001644004,0.6569,2618.5,2618.4,1.41301]
[1752001644211,0.76368,2618.6,2618.5,0.76365]
[1752001644610,0.6569,2618.6,2618.5,1.41295]
[1752001644811,1.42055,2618.6,2618.5,1.41295]
[1752001645205,1.42055,2618.6,2618.5,0.76365]
[1752001645510,1.42055,2618.6,2618.5,1.41295]
[1752001646111,0.6668,2618.7,2618.6,0.76366]
[1752001646512,2.08735,2618.7,2618.6,0.76366]
[1752001647013,0.76367,2618.6,2618.5,0.76366]
[1752001647209,1.42057,2618.6,2618.5,1.41296]
[1752001648914,1.43043,2618.7,2618.6,0.76366]
[1752001649212,2.08733,2618.7,2618.6,0.76366]
[1752001649803,2.08733,2618.7,2618.6,1.41296]
[1752001650008,2.08733,2618.7,2618.6,0.76366]
[1752001650314,0.76369,2618.6,2618.5,0.76368]
[1752001650611,1.42059,2618.6,2618.5,1.41298]
[1752001651211,0.6569,2618.6,2618.5,1.41298]
[1752001651413,30.81732442,2618.9,2618.5,0.6493]
[1752001651414,0.76362,2618.8,2618.5,0.6493]
[1752001651611,0.76362,2618.8,2618.7,0.7636]
[1752001651810,1.42052,2618.8,2618.7,0.7636]
[1752001652112,1.42052,2618.8,2618.7,1.4129]
[1752001653210,1.42052,2618.8,2618.7,0.6493]
[1752001653809,0.76362,2618.8,2618.7,0.76363]
[1752001654011,1.42052,2618.8,2618.7,1.41293]
[1752001654517,1.42052,2618.8,2618.7,0.6493]
[1752001654814,1.42052,2618.8,2618.7,1.41294]
[1752001656015,0.76368,2618.6,2618.4,2.27865748]
[1752001656218,1.42058,2618.6,2618.5,0.76367]
[1752001656514,1.42058,2618.6,2618.5,1.41297]
[1752001656817,2.04978,2618.6,2618.5,1.41297]
[1752001657614,1.63387442,2618.9,2618.5,2.55848]
[1752001657615,0.7636,2618.9,2618.5,2.55848]
[1752001657816,0.7636,2618.9,2618.8,0.76357]
[1752001658016,1.4205,2618.9,2618.8,1.41287]
[1752001658211,1.4205,2618.9,2618.8,0.76357]
[1752001658414,1.4205,2618.9,2618.3,6.25016748]
[1752001658415,0.76371,2618.4,2618.3,6.25016748]
[1752001658715,0.6569,2618.4,2618.3,6.89946748]
[1752001658916,0.6569,2618.4,2618.3,7.52906748]
[1752001659514,1.42061,2618.4,2618.3,6.87979748]
[1752001659713,1.42061,2618.4,2618.3,4.32129748]
[1752001660919,0.6569,2618.4,2618.3,4.32129748]
[1752001661417,2.41211,2618.4,2618.3,2.92795748]
[1752001661618,0.76374,2618.3,2618.2,2.27865748]
[1752001661817,0.76377,2618.2,2618.1,0.76379]
[1752001662021,3.2078,2618.4,2618.2,0.76374]
[1752001662218,1.42066,2618.3,2618.2,1.41304]
[1752001662911,0.76373,2618.4,2618.3,0.76371]
[1752001663112,1.42063,2618.4,2618.3,1.41301]
[1752001663822,0.76373,2618.4,2618.3,0.76371]
[1752001664024,1.42063,2618.4,2618.3,1.41301]
[1752001665125,1.42063,2618.4,2618.3,0.6493]
[1752001666624,2.41213,2618.4,2618.3,0.6493]
[1752001667224,0.76377,2618.2,2618.1,2.27865748]
[1752001667425,2.41217,2618.2,2618.1,2.92795748]
[1752001667619,2.41217,2618.2,2618.1,2.27865748]
[1752001667824,2.41217,2618.2,2618.1,2.92795748]
[1752001668232,0.7638,2618.1,2618.0,3.66898748]
[1752001668420,1.4207,2618.1,2618.0,3.55445748]
[1752001668624,1.4207,2618.1,2618.0,4.31828748]
[1752001669524,0.6569,2618.1,2618.0,4.31828748]
[1752001669729,0.76379,2618.2,2618.0,4.31828748]
[1752001669730,0.76379,2618.2,2618.1,0.7638]
[1752001669924,0.76379,2618.2,2618.1,1.4131]
[1752001670119,1.42069,2618.2,2618.1,1.4131]
[1752001670425,1.45339,2618.2,2618.1,0.6493]
[1752001670621,0.7638,2618.1,2618.0,0.6265]
[1752001670822,0.7638,2618.1,2618.0,1.3173]
[1752001671427,0.7638,2618.1,2618.0,0.6265]
[1752001671626,0.7638,2618.1,2618.0,1.3173]
[1752001673424,1.4534,2618.1,2618.0,1.3173]
[1752001673626,1.4534,2618.1,2618.0,0.6265]
[1752001674026,1.4534,2618.1,2618.0,1.3173]
[1752001674528,0.76386,2617.9,2617.8,2.27865748]
[1752001674732,1.63387442,2617.9,2617.4,2.27865748]
[1752001674933,2.39780442,2617.7,2617.4,2.27865748]
[1752001675123,2.39780442,2617.7,2617.3,1.78211]
[1752001675124,0.6896,2617.5,2617.3,3.04266748]
[1752001675327,0.6896,2617.5,2617.3,0.76401]
[1752001675526,1.45359,2617.5,2617.4,0.6908]
[1752001675729,3.71799,2617.5,2617.4,0.6908]
[1752001676127,2.72999,2617.5,2617.4,0.6908]
[1752001676322,1.966,2617.5,2617.4,0.6908]
[1752001677028,0.76403,2617.3,2617.1,2.27865748]
[1752001677329,1.361,2617.2,2617.0,1.40642]
[1752001677722,2.12506,2617.2,2617.1,0.6908]
[1752001677921,2.349,2617.2,2617.1,0.6908]
[1752001678129,1.361,2617.2,2617.1,0.6908]
[1752001679932,1.361,2617.2,2616.3,2.27865748]
[1752001679933,7.46698,2617.2,2616.3,2.27865748]
[1752001680131,7.46698,2617.2,2616.2,0.9023]
[1752001680132,4.84167442,2616.8,2616.2,0.9023]
[1752001680433,3.2078,2616.8,2616.7,0.76421]
[1752001680628,3.2078,2617.1,2616.9,0.76414]
[1752001680832,3.2078,2617.1,2616.9,2.39801442]
[1752001681336,1.6776,2617.2,2617.1,0.76409]
[1752001681836,3.8407,2617.4,2617.3,0.76403]
[1752001682037,0.988,2617.6,2617.5,0.76398]
[1752001682237,1.6776,2617.6,2617.4,0.76399]
[1752001682431,1.6776,2617.6,2617.5,0.76398]
[1752001683637,3.2078,2617.7,2617.6,0.76395]
[1752001683836,4.8854,2617.7,2617.6,1.45475]
[1752001684037,6.51927442,2617.7,2617.6,1.45475]
[1752001684231,7.86917442,2617.7,2617.6,1.45475]
[1752001685933,0.76397,2617.6,2617.3,0.76403]
[1752001686143,5.53127442,2617.4,2617.3,0.76403]
[1752001686336,6.51927442,2617.4,2616.8,0.6865]
[1752001686639,6.51927442,2617.4,2616.3,5.32880622]
[1752001686640,1.63387442,2616.9,2616.1,9.9335519]
[1752001686834,4.84167442,2616.7,2616.6,0.76422]
[1752001687034,6.51927442,2616.7,2616.0,8.08394748]
[1752001687234,1.3376,2616.6,2616.5,0.76426]
[1752001687540,3.8974,2616.7,2616.6,0.76424]
[1752001687938,4.8854,2616.7,2616.6,1.45504]
[1752001688134,3.2078,2617.0,2616.6,0.6908]
[1752001688333,3.2078,2617.0,2616.9,0.76415]
[1752001688528,4.8854,2617.0,2616.9,0.76415]
[1752001689041,4.8854,2617.0,2616.9,1.45495]
[1752001689335,4.8854,2617.0,2616.9,0.76415]
[1752001690241,4.8854,2617.0,2616.9,1.45495]
[1752001690441,3.8974,2617.0,2616.9,1.45495]
[1752001691533,4.8854,2617.0,2616.5,0.6813]
[1752001691733,6.51927442,2617.0,2616.7,0.7642]
[1752001691930,7.28340442,2617.0,2616.9,0.6908]
[1752001692138,7.28340442,2617.0,2616.7,0.7642]
[1752001692637,7.28340442,2617.0,2616.9,0.6908]
[1752001692638,3.8974,2617.0,2616.9,0.6908]
[1752001693646,4.8854,2617.0,2616.9,0.6908]
[1752001693939,3.8974,2617.0,2616.8,0.76417]
[1752001694244,3.8974,2617.0,2616.9,1.45495]
[1752001694444,3.8974,2617.0,2616.9,0.6908]
[1752001695142,3.8974,2617.0,2616.9,1.45495]
[1752001695545,3.8974,2617.0,2616.9,0.6908]
[1752001695735,6.51927442,2617.0,2616.8,0.76418]
[1752001695939,6.89227442,2617.0,2616.5,0.6813]
[1752001696142,6.89227442,2617.0,2616.7,0.76419]
[1752001696637,0.988,2616.9,2616.7,0.76419]
[1752001696836,0.6896,2616.8,2616.7,1.45499]
[1752001697046,0.6896,2616.8,2616.7,0.76419]
[1752001697246,0.6896,2616.8,2616.7,1.45499]
[1752001698250,3.31147442,2616.8,2616.7,1.45501]
[1752001698546,3.98937442,2616.8,2616.5,0.6813]
[1752001698743,4.84167442,2616.6,2616.5,1.44557]
[1752001699045,3.8974,2616.6,2616.5,1.44557]
[1752001699247,3.8974,2616.6,2616.5,2.13637]
[1752001700943,3.8974,2616.6,2616.5,1.3721]
[1752001701142,4.8854,2616.6,2616.5,2.13637]
[1752001701543,3.8974,2616.6,2616.5,2.13637]
[1752001702038,3.8974,2616.6,2616.5,1.3721]
[1752001702242,3.8974,2616.6,2616.5,2.13637]
[1752001703944,3.2078,2616.9,2616.5,3.88877442]
[1752001704145,3.2078,2616.9,2616.8,0.76418]
[1752001704350,5.25922286,2616.9,2616.8,0.76418]
[1752001704647,1.36882286,2616.9,2616.8,0.76418]
[1752001704845,2.05142286,2616.9,2616.8,0.76418]
[1752001705645,6.89309728,2616.9,2616.1,3.41798622]
[1752001705852,3.2078,2616.6,2616.2,0.6855]
[1752001706051,3.2078,2616.6,2616.5,0.76427]
[1752001706349,4.57684216,2616.6,2616.2,1.9418]
[1752001706550,3.2078,2616.6,2616.5,0.76427]
[1752001706747,4.57703066,2616.6,2616.5,0.76427]
[1752001706950,4.57703066,2616.6,2616.5,0.6709]
[1752001707144,5.34127066,2616.6,2616.5,0.6709]
[1752001707350,0.76433,2616.3,2615.9,0.76445]
[1752001707550,0.6826,2616.0,2615.9,1.13475]
[1752001708250,0.6826,2616.0,2615.9,0.3703]
[1752001708555,2.31647442,2616.0,2615.9,0.3703]
[1752001709152,3.68489344,2616.0,2615.9,0.3703]
[1752001709452,3.68489344,2616.0,2615.4,5.58872442]
[1752001709453,5.43566709,2616.0,2615.4,2.0434]
[1752001709650,1.3534,2615.9,2615.4,2.0434]
[1752001709956,3.2078,2615.9,2615.8,0.76447]
[1752001710152,0.6826,2615.9,2615.8,1.13477]
[1752001710350,1.6695,2615.9,2615.8,0.76447]
[1752001710654,1.6695,2615.9,2615.8,1.13477]
[1752001710856,1.6695,2615.9,2615.8,0.76447]
[1752001711155,1.6695,2615.9,2615.8,1.13477]
[1752001711754,1.6695,2615.9,2615.8,0.76447]
[1752001712649,1.6695,2615.9,2615.8,1.13477]
[1752001712849,0.6826,2615.9,2615.8,0.76447]
[1752001713058,3.898,2616.2,2616.1,0.76439]
[1752001713253,6.9352263,2616.2,2616.1,0.76439]
[1752001713455,8.3108263,2616.2,2615.6,1.91128]
[1752001713658,1.63387442,2616.0,2615.9,0.76444]
[1752001713857,3.898,2616.2,2616.1,0.76439]
[1752001714156,0.7642,2616.8,2616.7,0.76421]
[1752001714157,3.2078,2616.8,2616.7,0.76421]
[1752001714457,5.25830859,2616.8,2616.7,0.76421]
[1752001714655,2.05050859,2616.8,2616.7,2.39808442]
[1752001714957,2.05050859,2616.8,2616.7,0.76421]
[1752001714958,1.36790859,2616.8,2616.7,0.76421]
[1752001715656,1.36790859,2616.8,2616.7,3.97201]
[1752001716351,1.6291,2617.3,2616.8,1.91043]
[1752001716556,0.6826,2616.9,2616.8,0.76418]
[1752001716956,3.03970051,2616.9,2616.8,0.76418]
[1752001717166,2.9273,2616.9,2616.8,0.76418]
[1752001719268,4.29774315,2616.9,2616.8,0.76418]
[1752001720165,3.03994315,2616.9,2616.8,1.13448]
[1752001720369,1.37044315,2616.9,2616.8,1.13448]
[1752001720564,2.05304315,2616.9,2616.8,1.13448]
[1752001721565,3.03994315,2616.9,2616.8,0.76418]
[1752001721765,3.03987683,2616.9,2616.7,0.76419]
[1752001721966,2.0105,2616.8,2616.7,0.76419]
[1752001722670,2.77469,2616.8,2616.6,0.76422]
[1752001723268,2.77468,2616.8,2616.7,0.76421]
[1752001723470,2.0105,2616.8,2616.7,0.76421]
[1752001723969,3.68,2616.8,2616.7,0.76421]
[1752001724171,2.3002,2616.8,2616.7,1.13451]
[1752001724671,3.06439,2616.8,2616.6,0.76423]
[1752001724871,3.06439,2616.8,2616.7,0.76421]
[1752001725274,1.39489,2616.8,2616.7,0.76421]
[1752001725473,3.06439,2616.8,2616.7,0.76421]
[1752001725769,3.06439,2616.8,2616.7,1.13451]
[1752001725770,1.6695,2616.8,2616.7,1.13451]
[1752001725973,2.4337,2616.8,2616.7,0.3703]
[1752001726974,2.4337,2616.8,2616.7,1.13451]
[1752001727170,2.4337,2616.8,2616.7,0.76421]
[1752001727370,1.6695,2616.8,2616.7,0.76421]
[1752001727572,1.6695,2616.8,2616.3,3.61993185]
[1752001727777,1.75114,2616.7,2616.5,0.76426]
[1752001727973,0.6826,2616.6,2616.5,1.13456]
[1752001728473,4.8773,2616.6,2616.3,2.28453185]
[1752001728680,1.6695,2616.6,2616.5,0.76427]
[1752001728873,1.6695,2616.6,2616.5,1.13457]
[1752001729274,1.6695,2616.6,2616.5,0.76427]
[1752001729469,1.6695,2616.6,2616.5,1.13457]
[1752001731775,1.6695,2616.6,2616.5,0.3703]
[1752001731981,5.64154,2616.6,2616.5,0.3703]
[1752001732180,0.7643,2616.4,2616.0,5.11884]
[1752001732479,2.78169,2616.5,2616.3,0.76433]
[1752001732881,0.76431,2616.4,2616.2,0.76434]
[1752001733579,2.0174,2616.5,2616.0,3.2078]
[1752001733781,2.78169,2616.5,2616.3,0.76432]
[1752001734080,0.6627,2616.4,2616.3,0.76432]
[1752001734378,2.4457,2616.4,2616.2,0.76434]
[1752001734679,0.6627,2616.4,2616.3,1.13513]
[1752001734879,0.6627,2616.4,2616.3,0.76433]
[1752001735278,1.6814,2616.4,2616.3,0.76433]
[1752001735476,2.4457,2616.4,2616.3,1.13513]
[1752001735671,2.4457,2616.4,2616.2,0.76434]
[1752001735878,1.78303,2616.3,2616.1,0.76437]
[1752001736074,1.6814,2616.2,2615.6,5.32931622]
[1752001736281,0.7644,2616.1,2615.6,1.91133]
[1752001736473,0.6627,2615.7,2615.5,0.673]
[1752001736679,1.6814,2615.7,2615.6,1.13534]
[1752001737184,2.44592,2615.7,2615.5,0.76455]
[1752001737383,0.6627,2615.7,2615.5,0.76455]
[1752001737683,1.0187,2615.6,2615.5,0.76455]
[1752001737882,1.6814,2615.6,2615.5,1.13535]
[1752001738080,1.6814,2615.6,2615.5,0.76455]
[1752001738383,1.6814,2615.6,2615.5,1.13535]
[1752001738588,0.6627,2615.6,2615.5,1.13535]
[1752001738780,2.44595,2615.6,2615.3,3.2078]
[1752001738976,1.78326,2615.5,2615.0,5.11958]
[1752001739176,3.76636,2615.5,2615.4,0.76459]
[1752001739482,4.42906,2615.5,2615.3,0.76461]
[1752001739784,4.2265,2615.4,2614.8,1.91191]
[1752001739986,0.76465,2615.2,2615.0,0.76469]
[1752001740174,1.6814,2615.1,2614.7,3.8648]
[1752001740379,1.9582,2615.1,2614.7,3.8648]
[1752001740575,1.0187,2615.0,2614.9,0.76473]
[1752001740783,1.6814,2615.0,2614.9,1.13553]
[1752001741181,3.2078,2615.4,2615.2,0.76464]
[1752001741182,4.99111,2615.4,2615.2,0.76464]
[1752001741485,1.6814,2615.3,2615.2,1.13544]
[1752001741682,1.6814,2615.3,2615.2,0.76464]
[1752001743291,10.08404181,2615.3,2614.4,3.2078]
[1752001743485,10.08404181,2615.3,2614.9,0.76472]
[1752001743486,3.2078,2615.0,2614.9,0.76472]
[1752001743982,0.6627,2615.0,2614.9,1.13552]
[1752001744284,0.6627,2615.0,2614.6,1.91205]
[1752001744285,0.76478,2614.8,2614.4,3.2078]
[1752001744484,0.76481,2614.7,2614.5,0.76485]
[1752001744785,1.2575,2614.7,2614.3,1.9123]
[1752001744977,1.2575,2614.7,2614.6,0.76483]
[1752001745177,3.2078,2614.8,2614.7,0.7648]
[1752001745379,0.6627,2615.0,2614.9,0.76474]
[1752001746789,3.40264181,2615.2,2615.1,0.76468]
[1752001746991,4.06534181,2615.2,2615.1,0.76468]
[1752001747184,4.06534181,2615.2,2615.0,0.76469]
[1752001747185,4.83001181,2615.2,2615.0,0.76469]
[1752001747386,2.2811,2615.1,2615.0,0.76469]
[1752001748486,2.9438,2615.1,2615.0,0.76469]
[1752001748690,0.6627,2615.1,2615.0,0.76469]
[1752001749083,3.2078,2615.4,2615.3,0.76462]
[1752001749289,3.8705,2615.4,2615.3,0.76462]
[1752001749587,30.4315,2615.4,2614.7,1.912]
[1752001749792,3.2078,2615.1,2615.0,0.76469]
[1752001749993,3.2078,2615.1,2614.9,0.76472]
[1752001750292,1.2564,2615.0,2614.9,0.76472]
[1752001750587,4.65904181,2615.0,2614.0,3.2078]
[1752001750889,3.2078,2614.6,2614.5,0.76486]
[1752001751087,3.2078,2614.6,2614.5,1.13566]
[1752001751488,3.2078,2614.6,2614.5,0.3708]
[1752001751692,3.2078,2614.6,2614.5,1.13566]
[1752001752395,3.97263,2614.6,2614.5,0.3708]
[1752001752595,5.28193,2614.6,2614.5,0.3708]
[1752001752792,6.96335,2614.6,2614.1,0.6446]
[1752001752990,6.1985,2614.6,2614.1,0.6446]
[1752001753294,6.1985,2614.6,2614.4,0.76487]
[1752001753492,0.76492,2614.4,2614.2,0.76493]
[1752001753691,0.76492,2614.4,2614.0,3.2078]
[1752001753692,0.76488,2614.5,2614.0,3.2078]
[1752001753893,1.78358,2614.5,2614.3,0.7649]
[1752001754090,0.6627,2614.4,2614.3,0.7649]
[1752001754396,1.6814,2614.4,2614.3,0.7649]
[1752001754696,0.76493,2614.3,2614.1,0.76496]
[1752001754895,0.6627,2614.1,2614.0,3.2078]
[1752001755193,1.6814,2614.1,2614.0,1.13581]
[1752001755390,0.6627,2614.1,2614.0,1.13581]
[1752001757192,3.8603,2614.3,2614.2,0.76495]
[1752001757393,4.523,2614.3,2614.2,1.13575]
[1752001758193,5.28792,2614.3,2614.2,0.3708]
[1752001758397,7.92564181,2614.3,2614.2,0.3708]
[1752001758600,4.523,2614.3,2614.2,0.3708]
[1752001758801,5.28792,2614.3,2614.2,0.3708]
[1752001759398,4.523,2614.3,2614.2,1.13575]
[1752001759593,1.3152,2614.3,2614.2,1.13575]
[1752001760803,1.3009,2614.3,2614.2,1.13755]
[1752001761203,1.3009,2614.3,2614.2,0.76495]
[1752001761806,1.3009,2614.3,2614.2,1.13755]
[1752001762400,0.6484,2614.3,2614.2,1.13755]
[1752001763900,4.99213,2614.6,2614.5,0.76486]
[1752001764099,6.1391,2614.6,2614.5,0.76486]
[1752001764302,6.90393,2614.6,2614.5,0.76486]
[1752001765006,6.1391,2614.6,2614.5,0.76486]
[1752001765809,3.8562,2614.6,2614.5,1.13746]
[1752001765998,6.1747,2614.6,2614.5,0.76486]
[1752001766200,6.1747,2614.6,2614.0,3.2078]
[1752001766201,14.57734181,2614.6,2614.0,3.2078]
[1752001766402,14.57734181,2614.6,2614.0,0.76501]
[1752001766403,3.2078,2614.1,2614.0,0.76501]
[1752001766606,3.2078,2614.1,2613.6,3.2078]
[1752001766801,0.76509,2613.8,2613.7,0.76509]
[1752001767006,1.9702,2614.0,2613.6,3.9729]
[1752001767211,1.36759185,2613.9,2613.6,3.2078]
[1752001767411,2.06408,2613.8,2613.7,0.76508]
[1752001768711,2.06407,2613.8,2613.7,0.76508]
[1752001769606,37.8227,2613.8,2613.2,0.76522]
[1752001769810,37.8227,2613.8,2613.0,0.76528]
[1752001769811,0.76528,2613.1,2613.0,0.76528]
[1752001770113,3.2078,2613.1,2612.6,6.62578622]
[1752001770308,3.2078,2613.1,2612.6,3.2078]
[1752001770309,0.76538,2612.8,2612.6,3.2078]
[1752001770621,3.2078,2613.1,2612.6,3.2078]
[1752001770807,0.76535,2612.9,2612.8,0.76535]
[1752001771007,0.76535,2612.9,2612.8,1.45555]
[1752001771205,3.2078,2612.5,2611.7,3.51521497]
[1752001771506,3.2078,2611.8,2611.7,2.72836845]
[1752001771702,99.89949579,2612.9,2612.0,0.76559]
[1752001771703,3.2078,2612.1,2612.0,0.76559]
[1752001771912,100.32214181,2612.9,2612.0,6.61044181]
[1752001771913,3.2078,2612.6,2612.0,6.61044181]
[1752001772210,3.2078,2612.6,2612.5,0.76545]
[1752001772420,4.68706401,2612.6,2612.5,0.76545]
[1752001772604,4.68706401,2612.6,2612.5,3.49381845]
[1752001772808,4.68706401,2612.6,2612.5,8.49381845]
[1752001773008,3.42248227,2613.3,2612.5,8.40264181]
[1752001773211,3.42248227,2613.4,2613.1,3.2078]
[1752001773415,0.76521,2613.4,2613.1,3.2078]
[1752001774015,0.76522,2613.3,2613.1,3.2078]
[1752001774412,3.40264181,2613.3,2612.8,0.9629]
[1752001774615,0.76527,2613.1,2612.8,0.9629]
[1752001774819,0.76527,2613.1,2612.7,0.76539]
[1752001775020,3.40264181,2613.0,2612.6,3.2078]
[1752001775221,0.76548,2612.4,2612.3,3.2078]
[1752001775718,0.76546,2612.5,2612.3,3.2078]
[1752001775909,3.40264181,2612.7,2612.3,3.2078]
[1752001775910,4.16804181,2612.7,2612.3,3.97329]
[1752001776414,1.3855,2613.0,2612.3,3.2078]
[1752001776620,0.7654,2612.7,2612.6,3.2078]
[1752001776921,0.76534,2612.9,2612.5,0.76544]
[1752001777116,0.76534,2612.9,2612.6,3.97321]
[1752001777317,0.76537,2612.8,2612.6,3.2078]
[1752001777517,0.76527,2613.2,2612.7,4.1707]
[1752001777717,0.76527,2613.1,2612.8,1.42475]
[1752001778020,0.76516,2613.5,2613.2,0.76523]
[1752001778221,3.2078,2613.7,2613.5,0.76514]
[1752001778421,3.2078,2613.7,2613.3,0.9629]
[1752001778617,0.76514,2613.6,2613.3,0.7652]
[1752001779321,0.76514,2613.6,2613.4,0.76518]
[1752001779517,5.28802,2613.7,2613.4,0.76518]
[1752001779823,3.2078,2613.7,2613.6,0.76512]
[1752001780019,3.2078,2614.1,2613.9,0.76502]
[1752001780215,3.2078,2614.1,2614.0,0.76501]
[1752001781118,0.76492,2614.3,2613.7,1.2743]
[1752001781318,0.76499,2614.1,2613.9,0.76502]
[1752001781523,0.76497,2614.2,2613.9,0.76502]
[1752001781821,3.2078,2614.4,2613.7,1.2743]
[1752001781822,3.40264181,2614.3,2613.8,0.76504]
[1752001782027,1.3779,2614.2,2613.8,0.76504]
[1752001782229,0.76498,2614.1,2613.9,0.76502]
[1752001782428,0.76498,2614.1,2613.8,0.76505]
[1752001782826,0.76501,2614.0,2613.8,0.76505]
[1752001783323,1.3779,2614.2,2614.0,0.76501]
[1752001783324,2.14287,2614.2,2614.0,0.76501]
[1752001783726,0.76499,2614.1,2613.9,0.76501]
[1752001783922,3.2078,2614.7,2614.0,0.9629]
[1752001784128,3.2078,2614.7,2614.3,0.76491]
[1752001784324,0.76488,2614.5,2614.3,0.76491]
[1752001784629,0.76489,2614.4,2614.3,0.76491]
[1752001784829,3.40264181,2614.6,2614.3,0.76491]
[1752001784830,0.76488,2614.5,2614.3,0.76491]
[1752001785030,1.49525234,2614.4,2614.3,0.76492]
[1752001785227,0.76486,2614.5,2614.4,0.76489]
[1752001785424,2.26000203,2614.5,2614.4,0.76489]
[1752001785619,1.49514203,2614.5,2614.4,0.76489]
[1752001786620,1.0195,2615.1,2615.0,0.76472]
[1752001786820,2.51034717,2615.1,2615.0,0.76472]
[1752001787524,1.49084717,2615.1,2615.0,0.76472]
[1752001787730,1.49084717,2615.1,2615.0,3.97252]
[1752001788431,0.76465,2615.3,2615.0,3.2078]
[1752001788633,1.4898819,2615.2,2615.1,0.76469]
[1752001789327,3.2078,2615.6,2615.5,0.76457]
[1752001789538,1.48613911,2615.6,2615.5,0.76457]
[1752001790234,2.25069911,2615.6,2615.4,0.76459]
[1752001790530,0.76463,2615.4,2615.3,0.76462]
[1752001791127,4.66344181,2615.5,2615.4,0.7646]
[1752001791329,4.88695695,2615.5,2615.4,0.7646]
[1752001791635,4.16721181,2615.5,2615.4,0.7646]
[1752001792537,0.76462,2615.4,2615.3,0.7646]
[1752001792837,4.16723181,2615.5,2615.4,0.7646]
[1752001793037,0.76451,2615.8,2615.4,4.2125]
[1752001793231,3.2078,2615.9,2615.6,0.76452]
[1752001793232,5.65016657,2615.7,2615.6,0.76452]
[1752001793626,0.76455,2615.6,2615.5,0.76454]
[1752001793835,11.35047501,2615.6,2614.9,1.91181]
[1752001794134,11.35047501,2615.6,2615.2,0.76464]
[1752001794135,4.16729181,2615.3,2615.2,0.76464]
[1752001794933,4.81029181,2615.3,2615.2,0.76464]
[1752001795133,4.81029181,2615.3,2615.2,1.45954]
[1752001795134,4.04564181,2615.3,2615.2,1.45954]
[1752001795632,4.81027181,2615.3,2615.2,1.45954]
[1752001795830,4.81027181,2615.3,2615.2,0.76464]
[1752001797541,4.81027181,2615.3,2615.2,1.45954]
[1752001798739,4.81027181,2615.3,2615.2,0.6949]
[1752001799338,4.81027181,2615.3,2615.2,1.45956]
[1752001800341,4.81027181,2615.3,2614.6,2.57705]
[1752001800342,13.25744181,2615.3,2614.6,0.665]
[1752001800542,13.25744181,2615.3,2614.5,0.76484]
[1752001800543,0.76486,2614.6,2614.5,0.76484]
[1752001800741,0.76486,2614.5,2614.4,3.2078]
[1752001800942,2.03326,2614.5,2614.4,3.97269]
[1752001801340,2.03326,2614.5,2614.4,3.2078]
[1752001801646,2.03326,2614.5,2614.4,3.97269]
[1752001802242,2.03326,2614.5,2614.4,4.66759]
[1752001802541,2.03326,2614.5,2614.4,0.6949]
[1752001803742,34.25526,2614.5,2614.4,1e-05]
[1752001803943,3.82466,2614.3,2613.2,3.2078]
[1752001804139,0.76522,2613.3,2613.2,3.2078]
[1752001804541,0.7652,2613.4,2613.3,0.76521]
[1752001804739,3.40264181,2613.5,2613.2,3.2078]
[1752001805046,4.16782181,2613.5,2613.4,0.76519]
[1752001805247,0.76518,2613.5,2613.4,1.10842184]
[1752001805748,0.76514,2613.6,2613.5,0.76515]
[1752001805941,0.76515,2613.6,2613.2,3.2078]
[1752001806142,0.76517,2613.5,2613.4,0.76516]
[1752001806944,0.76508,2613.8,2613.7,0.76507]
[1752001807140,0.76507,2613.8,2613.7,0.76507]
[1752001807447,3.2078,2613.9,2613.6,0.76511]
[1752001807448,0.76511,2613.7,2613.6,0.76511]
[1752001807638,3.2078,2613.9,2613.4,1.0047]
[1752001807846,0.76509,2613.8,2613.7,0.76508]
[1752001809949,1.40809,2613.8,2613.7,0.76508]
[1752001810142,1.40809,2613.8,2613.7,1.45998]
[1752001811048,3.2078,2613.9,2613.8,0.76507]
[1752001811246,1.40804,2613.9,2613.8,0.76507]
[1752001812346,0.643,2613.9,2613.6,0.6844]
[1752001812551,3.40264181,2613.7,2613.6,1.44953]
[1752001812850,3.40264181,2613.7,2613.6,0.76513]
[1752001812851,4.16774181,2613.7,2613.6,0.76513]
[1752001813050,0.76513,2613.6,2613.5,0.76514]
[1752001813248,2.02803,2613.6,2613.5,0.76514]
[1752001813949,1.9059,2613.6,2613.5,1.46004]
[1752001814246,2.67103,2613.6,2613.5,0.76514]
[1752001814650,0.643,2613.6,2613.5,1.46004]
[1752001814947,0.643,2613.6,2613.0,0.6844]
[1752001814948,0.76543,2612.6,2612.2,3.2078]
[1752001815151,3.40264181,2612.5,2612.4,0.76548]
[1752001815452,0.76543,2612.6,2612.4,0.76548]
[1752001815752,0.76545,2612.5,2612.4,0.76548]
[1752001818357,0.76544,2612.6,2612.5,0.76545]
[1752001818648,0.76544,2612.6,2612.4,0.76546]
[1752001818850,0.76544,2612.6,2612.5,0.76545]
[1752001819051,3.2078,2612.9,2612.5,1.0047]
[1752001819251,0.76536,2612.9,2612.7,0.76537]
[1752001819846,0.76536,2612.9,2612.8,0.76536]
[1752001820048,31.55096181,2613.0,2612.9,0.76533]
[1752001820250,3.2078,2613.3,2612.9,0.6949]
[1752001820443,3.40264181,2613.6,2613.3,0.76519]
[1752001820444,0.76518,2613.5,2613.3,0.76519]
[1752001820644,3.2078,2613.6,2613.0,7.11747]
[1752001820849,3.2078,2613.6,2613.5,0.76516]
[1752001821051,5.45604098,2613.6,2613.5,0.76516]
[1752001821354,3.97293,2613.6,2613.5,0.76516]
[1752001823652,31.34393,2613.6,2613.5,0.76516]
[1752001824454,30.5788,2613.6,2613.0,8.15065]
[1752001824754,4.16784181,2613.4,2613.3,0.76519]